[Event "*** Titled Tuesday Blitz"]
[Site "Chess.com"]
[Date "2019.05.07"]
[Round "5"]
[White "Shahinyan_ChessMood"]
[Black "Arystanner"]
[Result "0-1"]
[WhiteElo "2739"]
[BlackElo "2764"]
[TimeControl "180+2"]
[EndTime "14:11:22 PDT"]
[Termination "Arystanner won by resignation"]

1. c4 {[%clk 0:03:01.9]} 1... e5 {[%clk 0:03:00.6]} 2. Nc3 {[%clk 0:03:02.6]}
2... Nc6 {[%clk 0:03:01.7]} 3. g3 {[%clk 0:03:02.7]} 3... f5 {[%clk 0:03:03.2]}
4. Bg2 {[%clk 0:03:03.9]} 4... Nf6 {[%clk 0:03:04.7]} 5. e3 {[%clk 0:03:03.8]}
5... g6 {[%clk 0:03:04.8]} 6. Nge2 {[%clk 0:03:04.1]} 6... Bg7 {[%clk
0:03:06.1]} 7. O-O {[%clk 0:03:05]} 7... O-O {[%clk 0:03:07.6]} 8. d4 {[%clk
0:03:04.2]} 8... d6 {[%clk 0:03:07.7]} 9. Rb1 {[%clk 0:03:03.4]} 9... a5 {[%clk
0:03:08.1]} 10. a3 {[%clk 0:03:03.9]} 10... Ne7 {[%clk 0:03:08.7]} 11. b4 {[%clk
0:03:04.7]} 11... axb4 {[%clk 0:03:10.6]} 12. axb4 {[%clk 0:03:06.6]} 12... c6
{[%clk 0:03:11.2]} 13. b5 {[%clk 0:03:07.6]} 13... Be6 {[%clk 0:03:09.6]} 14.
bxc6 {[%clk 0:03:05.2]} 14... bxc6 {[%clk 0:03:11.5]} 15. c5 {[%clk 0:02:52.8]}
15... e4 {[%clk 0:02:42.6]} 16. Rb7 {[%clk 0:02:17.4]} 16... Ned5 {[%clk
0:02:35.7]} 17. Nxd5 {[%clk 0:02:13.2]} 17... Nxd5 {[%clk 0:02:37.6]} 18. Qc2
{[%clk 0:02:00.9]} 18... Rf7 {[%clk 0:02:37]} 19. Rxf7 {[%clk 0:01:58.4]} 19...
Bxf7 {[%clk 0:02:38.9]} 20. Bd2 {[%clk 0:01:59.6]} 20... dxc5 {[%clk 0:02:30.7]}
21. Qxc5 {[%clk 0:01:54.2]} 21... Ra2 {[%clk 0:02:27.6]} 22. Rd1 {[%clk
0:01:52.6]} 22... Qa8 {[%clk 0:02:23.9]} 23. Bf1 {[%clk 0:01:39.1]} 23... Bf8
{[%clk 0:02:05.5]} 24. Qc1 {[%clk 0:01:39.4]} 24... Qa4 {[%clk 0:01:37.1]} 25.
Nc3 {[%clk 0:01:23.9]} 25... Nxc3 {[%clk 0:01:37.7]} 26. Bxc3 {[%clk 0:01:25.3]}
26... Rc2 {[%clk 0:01:35.8]} 27. Qa1 {[%clk 0:01:24.5]} 27... Ra2 {[%clk
0:01:20.8]} 28. Qc1 {[%clk 0:01:22.4]} 28... Bd5 {[%clk 0:01:19.7]} 29. Rd2
{[%clk 0:01:18.5]} 29... Ra3 {[%clk 0:01:10.3]} 30. Rb2 {[%clk 0:01:03.8]} 30...
Ra1 {[%clk 0:00:41.6]} 31. Rb1 {[%clk 0:01:04.1]} 31... Rxb1 {[%clk 0:00:42.5]}
32. Qxb1 {[%clk 0:01:06]} 32... Qa3 {[%clk 0:00:42.1]} 33. Be1 {[%clk
0:00:56.5]} 33... Qb3 {[%clk 0:00:40.8]} 34. Qa1 {[%clk 0:00:55.6]} 34... Qa3
{[%clk 0:00:38.4]} 35. Qb1 {[%clk 0:00:52.6]} 35... Qb3 {[%clk 0:00:39.6]} 36.
Qa1 {[%clk 0:00:30.7]} 36... Ba3 {[%clk 0:00:40.2]} 37. h4 {[%clk 0:00:26.4]}
37... Kf7 {[%clk 0:00:38.4]} 38. Ba5 {[%clk 0:00:25.9]} 38... Qb2 {[%clk
0:00:35.7]} 39. Qe1 {[%clk 0:00:25.1]} 39... Ke6 {[%clk 0:00:27.9]} 40. Bc3
{[%clk 0:00:22.5]} 40... Qc1 {[%clk 0:00:24.5]} 41. Qxc1 {[%clk 0:00:22.8]}
41... Bxc1 {[%clk 0:00:25.4]} 42. Bb4 {[%clk 0:00:24.7]} 42... Bb3 {[%clk
0:00:21.4]} 43. Ba6 {[%clk 0:00:16.2]} 43... Kd5 {[%clk 0:00:17.5]} 44. Bc8
{[%clk 0:00:16.7]} 44... Kc4 {[%clk 0:00:15.9]} 45. Bc5 {[%clk 0:00:17]} 45...
Kd3 {[%clk 0:00:16.6]} 46. Kf1 {[%clk 0:00:15.2]} 46... Kd2 {[%clk 0:00:17]} 47.
Bb4+ {[%clk 0:00:16.2]} 47... Kd1 {[%clk 0:00:18.5]} 48. Bd7 {[%clk 0:00:13.8]}
48... Bc4+ {[%clk 0:00:19.5]} 49. Kg2 {[%clk 0:00:14.8]} 49... Bd5 {[%clk
0:00:18.3]} 50. h5 {[%clk 0:00:11.3]} 50... Ke2 {[%clk 0:00:16.9]} 51. h6 {[%clk
0:00:11]} 51... Bxe3 {[%clk 0:00:15]} 52. fxe3 {[%clk 0:00:11.4]} 52... Kxe3
{[%clk 0:00:16.9]} 53. Be8 {[%clk 0:00:09.7]} 53... g5 {[%clk 0:00:10]} 54. Bg6
{[%clk 0:00:09.6]} 54... f4 {[%clk 0:00:09.7]} 55. Bxh7 {[%clk 0:00:09.9]} 55...
f3+ {[%clk 0:00:10.2]} 56. Kh2 {[%clk 0:00:06.4]} 56... f2 {[%clk 0:00:10.5]}
57. Kg2 {[%clk 0:00:06.5]} 57... Bc4 {[%clk 0:00:10.8]} 58. Bd2+ {[%clk
0:00:07.6]} 58... Ke2 {[%clk 0:00:11.5]} 59. Bxe4 {[%clk 0:00:07.3]} 59... f1=Q+
{[%clk 0:00:12.9]} 60. Kh2 {[%clk 0:00:07.9]} 60... Kxd2 {[%clk 0:00:12.4]} 61.
h7 {[%clk 0:00:05.9]} 61... Qf8 {[%clk 0:00:13.9]} 0-1

[Event "*** Titled Tuesday Blitz"]
[Site "Chess.com"]
[Date "2019.05.07"]
[Round "5"]
[White "riconaipe"]
[Black "maxip32"]
[Result "1/2-1/2"]
[WhiteElo "2435"]
[BlackElo "2413"]
[TimeControl "180+2"]
[EndTime "14:11:32 PDT"]
[Termination "Game drawn - insufficient material"]

1. d4 {[%clk 0:02:09.7]} 1... Nf6 {[%clk 0:02:40.4]} 2. c4 {[%clk 0:02:09.7]}
2... g6 {[%clk 0:02:41.4]} 3. Nc3 {[%clk 0:02:09.2]} 3... Bg7 {[%clk 0:02:43.3]}
4. e4 {[%clk 0:02:06.9]} 4... d6 {[%clk 0:02:44.5]} 5. Nge2 {[%clk 0:02:08.4]}
5... O-O {[%clk 0:02:44.8]} 6. f3 {[%clk 0:02:08.9]} 6... Nc6 {[%clk 0:02:44.2]}
7. Be3 {[%clk 0:02:10]} 7... a6 {[%clk 0:02:45.4]} 8. Rc1 {[%clk 0:02:10]} 8...
Bd7 {[%clk 0:02:45.1]} 9. Qd2 {[%clk 0:02:10.8]} 9... Na5 {[%clk 0:02:42.9]} 10.
Ng3 {[%clk 0:02:10.4]} 10... e5 {[%clk 0:02:33]} 11. dxe5 {[%clk 0:02:01.9]}
11... dxe5 {[%clk 0:02:33.8]} 12. b4 {[%clk 0:02:02.7]} 12... Nc6 {[%clk
0:02:34.2]} 13. Nd5 {[%clk 0:02:04.2]} 13... Be6 {[%clk 0:02:27.3]} 14. Be2
{[%clk 0:02:04]} 14... Nd4 {[%clk 0:02:24.2]} 15. O-O {[%clk 0:02:00.6]} 15...
c6 {[%clk 0:02:23.7]} 16. Nxf6+ {[%clk 0:02:00.1]} 16... Bxf6 {[%clk 0:02:25.6]}
17. f4 {[%clk 0:01:42.5]} 17... exf4 {[%clk 0:02:21.9]} 18. Bxf4 {[%clk
0:01:43.8]} 18... Nxe2+ {[%clk 0:02:17.9]} 19. Qxe2 {[%clk 0:01:43.3]} 19... Bg7
{[%clk 0:02:18.6]} 20. c5 {[%clk 0:01:41.9]} 20... Qd4+ {[%clk 0:02:18.7]} 21.
Kh1 {[%clk 0:01:40.4]} 21... Qxb4 {[%clk 0:02:19.3]} 22. Bd6 {[%clk 0:01:41.5]}
22... Rfd8 {[%clk 0:02:09]} 23. Rb1 {[%clk 0:01:37.6]} 23... Qc4 {[%clk
0:02:03.3]} 24. Qf2 {[%clk 0:01:31.7]} 24... Rd7 {[%clk 0:02:01.3]} 25. e5
{[%clk 0:01:29.5]} 25... Qxa2 {[%clk 0:02:00.9]} 26. Qf4 {[%clk 0:01:22.4]}
26... Bd5 {[%clk 0:01:59.6]} 27. Ne4 {[%clk 0:01:09.6]} 27... Re8 {[%clk
0:01:51.4]} 28. Rbe1 {[%clk 0:00:52.3]} 28... Bxe4 {[%clk 0:01:33.5]} 29. Rxe4
{[%clk 0:00:49.6]} 29... Qe6 {[%clk 0:01:29.6]} 30. h3 {[%clk 0:00:47.7]} 30...
Bf8 {[%clk 0:01:12.6]} 31. Rd4 {[%clk 0:00:48]} 31... Bxd6 {[%clk 0:01:10.7]}
32. exd6 {[%clk 0:00:49.2]} 32... Qe5 {[%clk 0:01:06]} 33. Qf2 {[%clk
0:00:31.6]} 33... Qxc5 {[%clk 0:00:36.4]} 34. Re4 {[%clk 0:00:33]} 34... Re5
{[%clk 0:00:37.4]} 35. Rxe5 {[%clk 0:00:19.1]} 35... Qxe5 {[%clk 0:00:37.2]} 36.
Re1 {[%clk 0:00:20.1]} 36... Qxd6 {[%clk 0:00:37.5]} 37. Qb2 {[%clk 0:00:19.8]}
37... Qd4 {[%clk 0:00:37.9]} 38. Qb3 {[%clk 0:00:19.7]} 38... Kg7 {[%clk
0:00:38.8]} 39. Qf3 {[%clk 0:00:20.4]} 39... Qd2 {[%clk 0:00:37.8]} 40. Rf1
{[%clk 0:00:20.5]} 40... Qd5 {[%clk 0:00:38.5]} 41. Qf6+ {[%clk 0:00:21.2]}
41... Kg8 {[%clk 0:00:38.7]} 42. Re1 {[%clk 0:00:21.1]} 42... Rd8 {[%clk
0:00:39.3]} 43. Re7 {[%clk 0:00:21.8]} 43... Qd1+ {[%clk 0:00:39.2]} 44. Kh2
{[%clk 0:00:22.9]} 44... Qd6+ {[%clk 0:00:40]} 45. Qxd6 {[%clk 0:00:23.9]} 45...
Rxd6 {[%clk 0:00:41.9]} 46. Rxb7 {[%clk 0:00:25.3]} 46... c5 {[%clk 0:00:32.5]}
47. Rc7 {[%clk 0:00:26.5]} 47... a5 {[%clk 0:00:33.6]} 48. Rxc5 {[%clk
0:00:27.2]} 48... Ra6 {[%clk 0:00:35.5]} 49. Rc3 {[%clk 0:00:28.5]} 49... a4
{[%clk 0:00:34.9]} 50. Ra3 {[%clk 0:00:30.1]} 50... Kg7 {[%clk 0:00:36.8]} 51.
Kg3 {[%clk 0:00:30]} 51... Kf6 {[%clk 0:00:38.7]} 52. Kf4 {[%clk 0:00:31.6]}
52... Ke6 {[%clk 0:00:39.3]} 53. Kg5 {[%clk 0:00:32.8]} 53... f6+ {[%clk
0:00:39.3]} 54. Kh6 {[%clk 0:00:33.9]} 54... Ra7 {[%clk 0:00:40.7]} 55. g4
{[%clk 0:00:31.4]} 55... Kd5 {[%clk 0:00:41.8]} 56. h4 {[%clk 0:00:30.1]} 56...
Kc4 {[%clk 0:00:42.6]} 57. Rf3 {[%clk 0:00:28]} 57... a3 {[%clk 0:00:42.7]} 58.
Rxf6 {[%clk 0:00:29.3]} 58... a2 {[%clk 0:00:43.4]} 59. Rf1 {[%clk 0:00:30.7]}
59... a1=Q {[%clk 0:00:43.6]} 60. Rxa1 {[%clk 0:00:31.9]} 60... Rxa1 {[%clk
0:00:44.9]} 61. Kxh7 {[%clk 0:00:33.2]} 61... Ra6 {[%clk 0:00:28.4]} 62. h5
{[%clk 0:00:33.4]} 62... gxh5 {[%clk 0:00:28.2]} 63. gxh5 {[%clk 0:00:34.4]}
63... Kd5 {[%clk 0:00:30]} 64. Kg7 {[%clk 0:00:35.4]} 64... Ke6 {[%clk 0:00:29]}
65. h6 {[%clk 0:00:36.2]} 65... Ra7+ {[%clk 0:00:13.7]} 66. Kg6 {[%clk
0:00:35.2]} 66... Ra8 {[%clk 0:00:13.5]} 67. h7 {[%clk 0:00:35.7]} 67... Rb8
{[%clk 0:00:04.3]} 68. Kg7 {[%clk 0:00:36.3]} 68... Rb7+ {[%clk 0:00:05.5]} 69.
Kg6 {[%clk 0:00:36.7]} 69... Rb8 {[%clk 0:00:07.4]} 70. Kg7 {[%clk 0:00:37.7]}
70... Kf5 {[%clk 0:00:08.2]} 71. h8=Q {[%clk 0:00:36.3]} 71... Rxh8 {[%clk
0:00:08.8]} 72. Kxh8 {[%clk 0:00:38.2]} 1/2-1/2

[Event "*** Titled Tuesday Blitz"]
[Site "Chess.com"]
[Date "2019.05.07"]
[Round "5"]
[White "ENEASZ"]
[Black "WPWPWP-2015"]
[Result "0-1"]
[WhiteElo "2514"]
[BlackElo "2385"]
[TimeControl "180+2"]
[EndTime "14:11:33 PDT"]
[Termination "WPWPWP-2015 won by resignation"]

1. e4 {[%clk 0:03:01.9]} 1... e5 {[%clk 0:03:00]} 2. Nf3 {[%clk 0:03:02.8]} 2...
Nc6 {[%clk 0:02:59.9]} 3. Bc4 {[%clk 0:03:01.4]} 3... Nf6 {[%clk 0:03:00.5]} 4.
Ng5 {[%clk 0:03:01.2]} 4... d5 {[%clk 0:03:00.1]} 5. exd5 {[%clk 0:03:03]} 5...
Na5 {[%clk 0:03:01.1]} 6. Bb5+ {[%clk 0:03:04.6]} 6... c6 {[%clk 0:03:02.4]} 7.
dxc6 {[%clk 0:03:06.5]} 7... bxc6 {[%clk 0:03:03.7]} 8. Be2 {[%clk 0:03:08.2]}
8... h6 {[%clk 0:03:03.6]} 9. Nf3 {[%clk 0:03:09.6]} 9... e4 {[%clk 0:03:04.5]}
10. Ne5 {[%clk 0:03:11.2]} 10... Bc5 {[%clk 0:03:05.1]} 11. O-O {[%clk
0:03:09.2]} 11... O-O {[%clk 0:03:05.4]} 12. Nc3 {[%clk 0:02:56.7]} 12... Qd4
{[%clk 0:02:57.1]} 13. Ng4 {[%clk 0:02:54]} 13... Nxg4 {[%clk 0:02:58.2]} 14.
Bxg4 {[%clk 0:02:55.9]} 14... f5 {[%clk 0:02:59.2]} 15. Be2 {[%clk 0:01:49.8]}
15... f4 {[%clk 0:02:54.1]} 16. d3 {[%clk 0:01:40.4]} 16... f3 {[%clk
0:02:41.8]} 17. Nxe4 {[%clk 0:01:39.5]} 17... fxe2 {[%clk 0:02:38.8]} 18. Qxe2
{[%clk 0:01:41.4]} 18... Qe5 {[%clk 0:02:25]} 19. Bd2 {[%clk 0:01:38.3]} 19...
Nb7 {[%clk 0:02:23.6]} 20. Bc3 {[%clk 0:01:23.6]} 20... Bd4 {[%clk 0:02:12.6]}
21. Rae1 {[%clk 0:01:23.9]} 21... Bxc3 {[%clk 0:02:11.3]} 22. Nxc3 {[%clk
0:01:25.8]} 22... Qxe2 {[%clk 0:02:08]} 23. Rxe2 {[%clk 0:01:27.7]} 23... Bg4
{[%clk 0:02:07.1]} 24. f3 {[%clk 0:01:28.5]} 24... Bh5 {[%clk 0:02:07.8]} 25.
Re6 {[%clk 0:01:25.6]} 25... Rf6 {[%clk 0:02:06.1]} 26. Rxf6 {[%clk 0:01:25.7]}
26... gxf6 {[%clk 0:02:06.7]} 27. Ne4 {[%clk 0:01:27.3]} 27... Kf7 {[%clk
0:02:05.4]} 28. Kf2 {[%clk 0:01:27.7]} 28... Bg6 {[%clk 0:02:05.5]} 29. b3
{[%clk 0:01:20]} 29... Rd8 {[%clk 0:02:04.9]} 30. Ke3 {[%clk 0:01:19.5]} 30...
f5 {[%clk 0:02:02.2]} 31. Ng3 {[%clk 0:01:17.5]} 31... Re8+ {[%clk 0:01:55.5]}
32. Kd2 {[%clk 0:01:18.4]} 32... Nc5 {[%clk 0:01:50.8]} 33. Ne2 {[%clk
0:01:16.1]} 33... Ne6 {[%clk 0:01:49.6]} 34. f4 {[%clk 0:01:15.6]} 34... Kf6
{[%clk 0:01:48.8]} 35. g3 {[%clk 0:01:15.9]} 35... Bh5 {[%clk 0:01:48]} 36. Ng1
{[%clk 0:01:14.3]} 36... Rd8 {[%clk 0:01:30.3]} 37. Nf3 {[%clk 0:01:14]} 37...
Bxf3 {[%clk 0:01:25.9]} 38. Rxf3 {[%clk 0:01:15.9]} 38... h5 {[%clk 0:01:27]}
39. b4 {[%clk 0:01:14]} 39... Rh8 {[%clk 0:01:21.1]} 40. h4 {[%clk 0:01:08.2]}
40... Rg8 {[%clk 0:01:21]} 41. a4 {[%clk 0:01:06.6]} 41... Ke7 {[%clk
0:01:12.8]} 42. Re3 {[%clk 0:01:06.9]} 42... Kf6 {[%clk 0:01:08.2]} 43. Kc3
{[%clk 0:01:07.5]} 43... Nc7 {[%clk 0:01:07.6]} 44. Kc4 {[%clk 0:01:00.3]} 44...
Nd5 {[%clk 0:01:08.5]} 45. Rf3 {[%clk 0:01:01.6]} 45... Rb8 {[%clk 0:00:55.5]}
46. c3 {[%clk 0:01:01.9]} 46... Rd8 {[%clk 0:00:54]} 47. d4 {[%clk 0:01:01.9]}
47... Ke6 {[%clk 0:00:49.3]} 48. Rf1 {[%clk 0:01:02.8]} 48... Kd6 {[%clk
0:00:46.1]} 49. Rf3 {[%clk 0:01:00]} 49... Rg8 {[%clk 0:00:35.7]} 50. b5 {[%clk
0:00:57.3]} 50... Nf6 {[%clk 0:00:33.2]} 51. Kd3 {[%clk 0:00:45.6]} 51... Ne4
{[%clk 0:00:33.9]} 52. c4 {[%clk 0:00:47.1]} 52... Nxg3 {[%clk 0:00:20.5]} 53.
c5+ {[%clk 0:00:44.6]} 53... Kc7 {[%clk 0:00:15]} 54. Kc4 {[%clk 0:00:39.1]}
54... Ne4 {[%clk 0:00:15.6]} 55. Re3 {[%clk 0:00:40.5]} 55... Rg1 {[%clk
0:00:13.4]} 56. Kb4 {[%clk 0:00:34.2]} 56... Rd1 {[%clk 0:00:11.5]} 57. Kc4
{[%clk 0:00:33.5]} 57... Rc1+ {[%clk 0:00:11.4]} 58. Kb4 {[%clk 0:00:34.4]}
58... Kd7 {[%clk 0:00:07.8]} 59. Re2 {[%clk 0:00:35.1]} 59... Rd1 {[%clk
0:00:08.1]} 60. Kc4 {[%clk 0:00:35.7]} 60... Rc1+ {[%clk 0:00:08.6]} 61. Kb4
{[%clk 0:00:36.6]} 61... Rb1+ {[%clk 0:00:09.1]} 62. Kc4 {[%clk 0:00:33.8]}
62... Ra1 {[%clk 0:00:07.3]} 63. Kb4 {[%clk 0:00:33.4]} 63... Rxa4+ {[%clk
0:00:07.5]} 64. Kxa4 {[%clk 0:00:25.1]} 64... Nc3+ {[%clk 0:00:08.5]} 65. Ka5
{[%clk 0:00:19.7]} 65... Nxe2 {[%clk 0:00:09.3]} 66. d5 {[%clk 0:00:21.6]} 66...
cxb5 {[%clk 0:00:07.4]} 67. Kxb5 {[%clk 0:00:21.2]} 67... Nxf4 {[%clk
0:00:07.3]} 68. c6+ {[%clk 0:00:18.9]} 68... Kd6 {[%clk 0:00:06]} 69. Ka6 {[%clk
0:00:20.8]} 0-1

[Event "*** Titled Tuesday Blitz"]
[Site "Chess.com"]
[Date "2019.05.07"]
[Round "5"]
[White "vovachesss"]
[Black "DrMelekess"]
[Result "0-1"]
[WhiteElo "2525"]
[BlackElo "2768"]
[TimeControl "180+2"]
[EndTime "14:11:49 PDT"]
[Termination "DrMelekess won by resignation"]

1. c4 {[%clk 0:03:01.9]} 1... e5 {[%clk 0:02:57.9]} 2. Nc3 {[%clk 0:03:02.5]}
2... Bb4 {[%clk 0:02:57.4]} 3. Nd5 {[%clk 0:03:02.5]} 3... Be7 {[%clk
0:02:58.1]} 4. Nf3 {[%clk 0:03:03.1]} 4... d6 {[%clk 0:02:57.8]} 5. e4 {[%clk
0:03:03]} 5... Nf6 {[%clk 0:02:53.8]} 6. Nxf6+ {[%clk 0:03:02]} 6... Bxf6 {[%clk
0:02:54.4]} 7. d4 {[%clk 0:03:03.9]} 7... exd4 {[%clk 0:02:54.1]} 8. Nxd4 {[%clk
0:03:05.2]} 8... O-O {[%clk 0:02:53.5]} 9. Be2 {[%clk 0:03:06.2]} 9... Re8
{[%clk 0:02:52.4]} 10. f3 {[%clk 0:03:07.1]} 10... Nc6 {[%clk 0:02:25.5]} 11.
Be3 {[%clk 0:03:04.2]} 11... Bxd4 {[%clk 0:02:06.1]} 12. Bxd4 {[%clk 0:03:04.8]}
12... f5 {[%clk 0:02:07.4]} 13. Bc3 {[%clk 0:02:46.4]} 13... fxe4 {[%clk
0:02:04]} 14. Qd5+ {[%clk 0:02:47.3]} 14... Be6 {[%clk 0:01:39.9]} 15. Qxe4
{[%clk 0:02:41.8]} 15... Qg5 {[%clk 0:01:00.6]} 16. Kf2 {[%clk 0:02:15]} 16...
Qc5+ {[%clk 0:00:34.2]} 17. Kf1 {[%clk 0:01:51.9]} 17... Bf5 {[%clk 0:00:13.5]}
18. Qd5+ {[%clk 0:01:40.7]} 18... Qxd5 {[%clk 0:00:14.4]} 19. cxd5 {[%clk
0:01:42.6]} 19... Ne5 {[%clk 0:00:13.4]} 20. Rd1 {[%clk 0:01:40.4]} 20... Re7
{[%clk 0:00:11.3]} 21. Kf2 {[%clk 0:01:41.2]} 21... h6 {[%clk 0:00:11.8]} 22.
Rhe1 {[%clk 0:01:42.3]} 22... Rae8 {[%clk 0:00:11.5]} 23. Bb5 {[%clk 0:01:40.2]}
23... Bd7 {[%clk 0:00:10.6]} 24. Bf1 {[%clk 0:01:25.8]} 24... Kf7 {[%clk
0:00:10.1]} 25. h3 {[%clk 0:01:25.5]} 25... Ng6 {[%clk 0:00:10.3]} 26. Bd3
{[%clk 0:01:20.8]} 26... Rxe1 {[%clk 0:00:10.1]} 27. Rxe1 {[%clk 0:01:20.5]}
27... Rxe1 {[%clk 0:00:10.8]} 28. Kxe1 {[%clk 0:01:18.6]} 28... Nf4 {[%clk
0:00:10.9]} 29. Bf1 {[%clk 0:01:19.9]} 29... Nxd5 {[%clk 0:00:08.4]} 30. Bd2
{[%clk 0:00:57.6]} 30... Be6 {[%clk 0:00:07.7]} 31. Kf2 {[%clk 0:00:58.5]} 31...
Ne7 {[%clk 0:00:05.5]} 32. a3 {[%clk 0:00:59.2]} 32... b6 {[%clk 0:00:07]} 33.
g4 {[%clk 0:00:59.8]} 33... Nc6 {[%clk 0:00:07.7]} 34. f4 {[%clk 0:00:58.3]}
34... Bd5 {[%clk 0:00:08]} 35. Bc3 {[%clk 0:00:56.5]} 35... Ne7 {[%clk 0:00:08]}
36. h4 {[%clk 0:00:55.6]} 36... c5 {[%clk 0:00:08.1]} 37. Bd3 {[%clk 0:00:56.3]}
37... h5 {[%clk 0:00:06.6]} 38. gxh5 {[%clk 0:00:49.4]} 38... Be6 {[%clk
0:00:07.7]} 39. b4 {[%clk 0:00:35]} 39... Bg4 {[%clk 0:00:07.9]} 40. bxc5 {[%clk
0:00:32.5]} 40... bxc5 {[%clk 0:00:09.8]} 41. h6 {[%clk 0:00:21.3]} 41... gxh6
{[%clk 0:00:10]} 42. Ba5 {[%clk 0:00:19.3]} 42... Ke6 {[%clk 0:00:10.2]} 43. Bd2
{[%clk 0:00:14.2]} 43... Bf5 {[%clk 0:00:10.4]} 44. Be2 {[%clk 0:00:14.1]} 44...
d5 {[%clk 0:00:11.8]} 45. Ba5 {[%clk 0:00:10.5]} 45... Kd6 {[%clk 0:00:12.3]}
46. Bd8 {[%clk 0:00:10.5]} 46... d4 {[%clk 0:00:13.3]} 47. Bc4 {[%clk
0:00:11.4]} 47... Be6 {[%clk 0:00:12]} 48. Bd3 {[%clk 0:00:10.4]} 48... c4
{[%clk 0:00:12]} 49. Be4 {[%clk 0:00:10.8]} 49... c3 {[%clk 0:00:12.9]} 50. Ke2
{[%clk 0:00:09.6]} 50... Bc4+ {[%clk 0:00:13.4]} 51. Kd1 {[%clk 0:00:09.4]}
51... d3 {[%clk 0:00:14.2]} 52. Ba5 {[%clk 0:00:10]} 52... Bb3+ {[%clk
0:00:15.2]} 53. Ke1 {[%clk 0:00:08]} 53... d2+ {[%clk 0:00:17.1]} 54. Kf2 {[%clk
0:00:09.5]} 54... d1=Q {[%clk 0:00:19]} 55. Bb4+ {[%clk 0:00:11.1]} 55... Kd7
{[%clk 0:00:20.2]} 56. Bxc3 {[%clk 0:00:12.2]} 56... Qg4 {[%clk 0:00:17.4]} 57.
Be5 {[%clk 0:00:12.5]} 57... Qxh4+ {[%clk 0:00:17.3]} 58. Ke3 {[%clk 0:00:14.4]}
58... Bd5 {[%clk 0:00:18.8]} 59. Bd3 {[%clk 0:00:13.6]} 59... Qe1+ {[%clk
0:00:19]} 60. Kd4 {[%clk 0:00:14.8]} 60... Bc6 {[%clk 0:00:17]} 61. Bc4 {[%clk
0:00:15.4]} 61... Nf5+ {[%clk 0:00:15.6]} 62. Kd3 {[%clk 0:00:16.6]} 62... Qe4+
{[%clk 0:00:15.4]} 63. Kc3 {[%clk 0:00:17.4]} 63... Qe3+ {[%clk 0:00:17.3]} 64.
Kb4 {[%clk 0:00:17.9]} 64... Nd6 {[%clk 0:00:17.3]} 65. Bb3 {[%clk 0:00:18.4]}
65... a5+ {[%clk 0:00:15.8]} 66. Kxa5 {[%clk 0:00:18]} 66... Qc5+ {[%clk
0:00:16.5]} 67. Ka6 {[%clk 0:00:18]} 67... Qb5+ {[%clk 0:00:18.4]} 0-1